[Event "*** Titled Tuesday Blitz"]
[Site "Chess.com"]
[Date "2019.09.03"]
[Round "10"]
[White "Potosino1970"]
[Black "plumalka"]
[Result "1-0"]
[WhiteElo "2556"]
[BlackElo "2329"]
[TimeControl "180+2"]
[EndTime "17:20:16 PDT"]
[Termination "Potosino1970 won by resignation"]

1. e4 {[%clk 0:03:01.9]} 1... c5 {[%clk 0:03:00.2]} 2. Nc3 {[%clk 0:03:02.4]}
2... d6 {[%clk 0:02:58.8]} 3. f4 {[%clk 0:03:02.4]} 3... g6 {[%clk 0:02:58.7]}
4. Nf3 {[%clk 0:03:03.9]} 4... Bg7 {[%clk 0:02:59.7]} 5. Bb5+ {[%clk 0:03:04.3]}
5... Bd7 {[%clk 0:03:00.2]} 6. Bc4 {[%clk 0:03:05.4]} 6... Nc6 {[%clk
0:02:52.7]} 7. d3 {[%clk 0:03:06.2]} 7... a6 {[%clk 0:02:48.8]} 8. a4 {[%clk
0:03:05.6]} 8... Nf6 {[%clk 0:02:47.1]} 9. e5 {[%clk 0:03:02.9]} 9... dxe5
{[%clk 0:02:47.9]} 10. fxe5 {[%clk 0:03:03.9]} 10... Ng4 {[%clk 0:02:49.1]} 11.
e6 {[%clk 0:02:58.9]} 11... Bxe6 {[%clk 0:02:46.5]} 12. Bxe6 {[%clk 0:02:58.5]}
12... fxe6 {[%clk 0:02:47.5]} 13. O-O {[%clk 0:02:57.9]} 13... O-O {[%clk
0:02:44.9]} 14. Kh1 {[%clk 0:02:54.4]} 14... Nd4 {[%clk 0:02:42.5]} 15. Ne4
{[%clk 0:02:51.7]} 15... Qc7 {[%clk 0:02:33.2]} 16. g3 {[%clk 0:02:42.2]} 16...
Nf5 {[%clk 0:02:29.3]} 17. Qe2 {[%clk 0:02:37.3]} 17... Ne5 {[%clk 0:02:16.7]}
18. Bf4 {[%clk 0:02:36.7]} 18... Nd4 {[%clk 0:02:11.3]} 19. Nxd4 {[%clk
0:02:36]} 19... cxd4 {[%clk 0:02:12.5]} 20. Ng5 {[%clk 0:02:37]} 20... Qc6+
{[%clk 0:02:11]} 21. Qg2 {[%clk 0:02:37.9]} 21... Rac8 {[%clk 0:01:41.6]} 22.
Bxe5 {[%clk 0:02:30.6]} 22... Bxe5 {[%clk 0:01:37.7]} 23. Rxf8+ {[%clk
0:02:30.2]} 23... Rxf8 {[%clk 0:01:34.2]} 24. Qxc6 {[%clk 0:02:25.8]} 24... bxc6
{[%clk 0:01:36.1]} 25. Re1 {[%clk 0:02:25.7]} 25... Bd6 {[%clk 0:01:32.2]} 26.
Kg2 {[%clk 0:02:22.9]} 26... e5 {[%clk 0:01:31.2]} 27. b3 {[%clk 0:02:18.3]}
27... h6 {[%clk 0:01:30.2]} 28. Ne4 {[%clk 0:02:14.4]} 28... Kf7 {[%clk
0:01:30.1]} 29. Rf1+ {[%clk 0:02:14.9]} 29... Ke8 {[%clk 0:01:29.8]} 30. Rxf8+
{[%clk 0:02:16.1]} 30... Kxf8 {[%clk 0:01:31.7]} 31. Kf3 {[%clk 0:02:15.3]}
31... Kf7 {[%clk 0:01:30.9]} 32. Kg4 {[%clk 0:02:15.5]} 32... Ke6 {[%clk
0:01:31]} 33. h4 {[%clk 0:02:15.7]} 33... Ba3 {[%clk 0:01:29.7]} 34. h5 {[%clk
0:02:15.5]} 34... g5 {[%clk 0:01:25.3]} 35. Kf3 {[%clk 0:02:13.5]} 35... Bc1
{[%clk 0:01:25.5]} 36. Nc5+ {[%clk 0:02:13.8]} 36... Kd6 {[%clk 0:01:23.8]} 37.
Nxa6 {[%clk 0:02:09.7]} 37... Bd2 {[%clk 0:01:15.6]} 38. b4 {[%clk 0:02:07.3]}
38... e6 {[%clk 0:01:16]} 39. Ke4 {[%clk 0:02:07.7]} 39... Be1 {[%clk
0:01:16.4]} 40. g4 {[%clk 0:02:08.7]} 40... Bd2 {[%clk 0:01:17.5]} 41. b5 {[%clk
0:02:06.9]} 41... cxb5 {[%clk 0:01:17.9]} 42. axb5 {[%clk 0:02:07.7]} 42... Ba5
{[%clk 0:01:18.6]} 43. Nb8 {[%clk 0:02:04.2]} 43... Be1 {[%clk 0:01:09.8]} 44.
b6 {[%clk 0:01:55.9]} 44... Bg3 {[%clk 0:01:05.7]} 45. b7 {[%clk 0:01:53.8]}
45... Kc7 {[%clk 0:01:05.4]} 46. Nd7 {[%clk 0:01:53.7]} 46... Kxb7 {[%clk
0:01:06.6]} 47. Nxe5 {[%clk 0:01:50.6]} 47... Kc7 {[%clk 0:01:06.7]} 48. Nf7
{[%clk 0:01:51.3]} 48... Kd7 {[%clk 0:01:06.4]} 49. Nxh6 {[%clk 0:01:52.2]}
49... Ke7 {[%clk 0:01:06.6]} 50. Kxd4 {[%clk 0:01:51.7]} 50... Kf6 {[%clk
0:01:05.9]} 51. Ke4 {[%clk 0:01:51.6]} 51... Kg7 {[%clk 0:01:05.8]} 52. Nf5+
{[%clk 0:01:52.1]} 52... exf5+ {[%clk 0:01:05.7]} 53. Kxf5 {[%clk 0:01:54]}
53... Bf4 {[%clk 0:01:03.9]} 54. d4 {[%clk 0:01:55]} 54... Be3 {[%clk
0:01:03.2]} 55. d5 {[%clk 0:01:55.4]} 55... Kf7 {[%clk 0:01:00.1]} 56. c4 {[%clk
0:01:55.8]} 56... Ke7 {[%clk 0:00:33.8]} 57. h6 {[%clk 0:01:54.7]} 57... Kf7
{[%clk 0:00:33.9]} 58. d6 {[%clk 0:01:54.8]} 58... Bd4 {[%clk 0:00:32.5]} 59. h7
{[%clk 0:01:46]} 59... Bf6 {[%clk 0:00:22.2]} 60. c5 {[%clk 0:01:46]} 60... Bh8
{[%clk 0:00:22.6]} 61. c6 {[%clk 0:01:46.5]} 61... Ke8 {[%clk 0:00:23.2]} 62.
Ke6 {[%clk 0:01:46.2]} 62... Kd8 {[%clk 0:00:23.3]} 63. c7+ {[%clk 0:01:43.2]}
63... Kc8 {[%clk 0:00:23.4]} 64. Ke7 {[%clk 0:01:44.1]} 64... Kb7 {[%clk
0:00:22.5]} 65. d7 {[%clk 0:01:40.1]} 1-0

[Event "*** Titled Tuesday Blitz"]
[Site "Chess.com"]
[Date "2019.09.03"]
[Round "10"]
[White "Korchmar_Vasiliy"]
[Black "TheFireChess"]
[Result "0-1"]
[WhiteElo "2660"]
[BlackElo "2519"]
[TimeControl "180+2"]
[EndTime "17:20:23 PDT"]
[Termination "TheFireChess won on time"]

1. d4 {[%clk 0:03:01.9]} 1... d6 {[%clk 0:02:59.1]} 2. e4 {[%clk 0:03:02.4]}
2... e5 {[%clk 0:02:59]} 3. Nf3 {[%clk 0:03:01.1]} 3... Nd7 {[%clk 0:02:58]} 4.
Nc3 {[%clk 0:03:02.2]} 4... Ngf6 {[%clk 0:02:56.7]} 5. Bc4 {[%clk 0:03:03.3]}
5... Be7 {[%clk 0:02:57.7]} 6. O-O {[%clk 0:03:04.6]} 6... O-O {[%clk
0:02:58.4]} 7. Re1 {[%clk 0:03:06.1]} 7... c6 {[%clk 0:02:58.4]} 8. b3 {[%clk
0:03:06.1]} 8... b5 {[%clk 0:02:58.6]} 9. Bf1 {[%clk 0:03:06.8]} 9... a6 {[%clk
0:02:59.8]} 10. Bb2 {[%clk 0:03:07.6]} 10... Re8 {[%clk 0:02:56.9]} 11. dxe5
{[%clk 0:02:53.9]} 11... dxe5 {[%clk 0:02:57]} 12. a4 {[%clk 0:02:55.3]} 12...
Bb7 {[%clk 0:02:51]} 13. Nh4 {[%clk 0:02:53.8]} 13... g6 {[%clk 0:01:58.9]} 14.
Qf3 {[%clk 0:02:53.8]} 14... Bf8 {[%clk 0:01:35.6]} 15. Qh3 {[%clk 0:02:34]}
15... Qc7 {[%clk 0:01:30.4]} 16. Rad1 {[%clk 0:02:34.9]} 16... Rad8 {[%clk
0:01:28.7]} 17. Nf3 {[%clk 0:02:18.2]} 17... Bg7 {[%clk 0:01:27.2]} 18. Bc1
{[%clk 0:02:09.6]} 18... Nf8 {[%clk 0:01:25.3]} 19. Bh6 {[%clk 0:01:20]} 19...
Ne6 {[%clk 0:01:03]} 20. Bxg7 {[%clk 0:01:21.2]} 20... Kxg7 {[%clk 0:01:04.9]}
21. Qg3 {[%clk 0:01:22.8]} 21... Nf4 {[%clk 0:01:01.6]} 22. Nh4 {[%clk
0:01:16.5]} 22... Bc8 {[%clk 0:00:44.4]} 23. Nf5+ {[%clk 0:01:04.6]} 23... Kh8
{[%clk 0:00:34.3]} 24. Qg5 {[%clk 0:00:52.9]} 24... N4h5 {[%clk 0:00:28.3]} 25.
Ng3 {[%clk 0:00:43.8]} 25... Qe7 {[%clk 0:00:19.4]} 26. Rxd8 {[%clk 0:00:41.4]}
26... Qxd8 {[%clk 0:00:17.8]} 27. Rd1 {[%clk 0:00:42.7]} 27... Qe7 {[%clk
0:00:18.4]} 28. Nxh5 {[%clk 0:00:42.9]} 28... gxh5 {[%clk 0:00:20]} 29. axb5
{[%clk 0:00:37.2]} 29... axb5 {[%clk 0:00:20.5]} 30. Ne2 {[%clk 0:00:36.4]}
30... Rg8 {[%clk 0:00:21.9]} 31. Qe3 {[%clk 0:00:32.1]} 31... Ng4 {[%clk
0:00:22.2]} 32. Qg3 {[%clk 0:00:22.1]} 32... Nf6 {[%clk 0:00:21]} 33. Qe3 {[%clk
0:00:20]} 33... Ng4 {[%clk 0:00:22.2]} 34. Qc3 {[%clk 0:00:21.1]} 34... Qh4
{[%clk 0:00:22.1]} 35. Qg3 {[%clk 0:00:22.6]} 35... Qe7 {[%clk 0:00:22.6]} 36.
h3 {[%clk 0:00:20.4]} 36... Nh6 {[%clk 0:00:23.1]} 37. Qc3 {[%clk 0:00:19.3]}
37... Rg6 {[%clk 0:00:23]} 38. Nf4 {[%clk 0:00:18.6]} 38... Rg5 {[%clk
0:00:21.1]} 39. Nd3 {[%clk 0:00:18.6]} 39... Bd7 {[%clk 0:00:20.9]} 40. Qc5
{[%clk 0:00:15.9]} 40... Qxc5 {[%clk 0:00:20.2]} 41. Nxc5 {[%clk 0:00:16.9]}
41... Be8 {[%clk 0:00:21.5]} 42. Rd8 {[%clk 0:00:17]} 42... Rg8 {[%clk
0:00:22.9]} 43. Be2 {[%clk 0:00:11.8]} 43... f6 {[%clk 0:00:23.8]} 44. Ne6
{[%clk 0:00:04.5]} 44... h4 {[%clk 0:00:24.9]} 45. Nc5 {[%clk 0:00:03.8]} 45...
Nf7 {[%clk 0:00:26]} 46. Ra8 {[%clk 0:00:04.1]} 46... Ng5 {[%clk 0:00:27]} 47.
Kf1 {[%clk 0:00:02.6]} 47... Bg6 {[%clk 0:00:28.1]} 48. f3 {[%clk 0:00:03.5]}
48... Rxa8 {[%clk 0:00:28.4]} 0-1

[Event "*** Titled Tuesday Blitz"]
[Site "Chess.com"]
[Date "2019.09.03"]
[Round "10"]
[White "tonyq11"]
[Black "StoreySniper"]
[Result "1-0"]
[WhiteElo "2191"]
[BlackElo "2332"]
[TimeControl "180+2"]
[EndTime "17:20:51 PDT"]
[Termination "tonyq11 won by resignation"]

1. e4 {[%clk 0:03:01.9]} 1... d5 {[%clk 0:03:00.5]} 2. exd5 {[%clk 0:03:01.9]}
2... Qxd5 {[%clk 0:03:01.5]} 3. Nc3 {[%clk 0:03:01.7]} 3... Qd6 {[%clk
0:03:02.4]} 4. d4 {[%clk 0:03:02.9]} 4... Nf6 {[%clk 0:03:02.8]} 5. Bc4 {[%clk
0:02:57.7]} 5... a6 {[%clk 0:03:03.1]} 6. Nge2 {[%clk 0:02:51.2]} 6... b5 {[%clk
0:03:03.8]} 7. Bd3 {[%clk 0:02:51.3]} 7... Bb7 {[%clk 0:03:04.9]} 8. Bf4 {[%clk
0:02:49]} 8... Qd7 {[%clk 0:03:02.5]} 9. f3 {[%clk 0:02:49.9]} 9... Nc6 {[%clk
0:02:58.3]} 10. Ne4 {[%clk 0:02:41.3]} 10... Nxe4 {[%clk 0:02:57.2]} 11. fxe4
{[%clk 0:02:43.2]} 11... Nxd4 {[%clk 0:02:54.8]} 12. Nxd4 {[%clk 0:02:44]} 12...
O-O-O {[%clk 0:02:49.4]} 13. Nf3 {[%clk 0:02:28.4]} 13... h6 {[%clk 0:02:38.1]}
14. Qd2 {[%clk 0:02:07.7]} 14... g5 {[%clk 0:02:35.7]} 15. Be3 {[%clk
0:02:03.6]} 15... Bg7 {[%clk 0:02:35.9]} 16. O-O-O {[%clk 0:01:41]} 16... Qe6
{[%clk 0:02:35.9]} 17. Kb1 {[%clk 0:01:30.2]} 17... Bxe4 {[%clk 0:02:36.5]} 18.
Qe2 {[%clk 0:00:58.2]} 18... Bxd3 {[%clk 0:02:35.5]} 19. Rxd3 {[%clk 0:00:58.8]}
19... Rxd3 {[%clk 0:02:31.3]} 20. Qxd3 {[%clk 0:00:58.1]} 20... Rd8 {[%clk
0:02:31.3]} 21. Qb3 {[%clk 0:00:51.8]} 21... Qxb3 {[%clk 0:02:23.3]} 22. axb3
{[%clk 0:00:53.7]} 22... e5 {[%clk 0:02:22.3]} 23. c3 {[%clk 0:00:50.2]} 23...
f5 {[%clk 0:02:22.5]} 24. Kc2 {[%clk 0:00:49.4]} 24... f4 {[%clk 0:02:21.8]} 25.
Bc5 {[%clk 0:00:47.1]} 25... e4 {[%clk 0:02:19.6]} 26. Nd4 {[%clk 0:00:47.4]}
26... e3 {[%clk 0:02:18.7]} 27. Re1 {[%clk 0:00:44.2]} 27... Rd5 {[%clk
0:02:17.7]} 28. b4 {[%clk 0:00:43.9]} 28... Kd7 {[%clk 0:02:17.6]} 29. Re2
{[%clk 0:00:43.5]} 29... a5 {[%clk 0:02:17.2]} 30. Nxb5 {[%clk 0:00:40.1]} 30...
axb4 {[%clk 0:02:13.1]} 31. cxb4 {[%clk 0:00:41]} 31... g4 {[%clk 0:02:02.9]}
32. Nc3 {[%clk 0:00:37.5]} 32... Rh5 {[%clk 0:01:58.3]} 33. g3 {[%clk
0:00:23.2]} 33... f3 {[%clk 0:01:45.5]} 34. Rxe3 {[%clk 0:00:24.3]} 34... Rxh2+
{[%clk 0:01:46.1]} 35. Kd3 {[%clk 0:00:17.9]} 35... f2 {[%clk 0:01:25]} 36. Re7+
{[%clk 0:00:17.4]} 36... Kd8 {[%clk 0:01:25.5]} 37. Rf7 {[%clk 0:00:18.4]} 37...
Bxc3 {[%clk 0:01:21.9]} 38. bxc3 {[%clk 0:00:16.5]} 38... Rg2 {[%clk 0:01:23.2]}
39. Bxf2 {[%clk 0:00:17.4]} 39... Ke8 {[%clk 0:01:23.5]} 40. Rf4 {[%clk
0:00:18]} 40... h5 {[%clk 0:01:24.7]} 41. Ke3 {[%clk 0:00:16.8]} 41... Rh2
{[%clk 0:01:24.6]} 42. Re4+ {[%clk 0:00:16.8]} 42... Kf7 {[%clk 0:01:25.2]} 43.
Rc4 {[%clk 0:00:15.9]} 43... h4 {[%clk 0:01:25.1]} 44. Rxc7+ {[%clk 0:00:16.3]}
44... Ke6 {[%clk 0:01:26.4]} 45. gxh4 {[%clk 0:00:15]} 45... Rh3+ {[%clk
0:01:27.5]} 46. Kd4 {[%clk 0:00:14.3]} 46... Rf3 {[%clk 0:01:27.4]} 47. Be1
{[%clk 0:00:11.4]} 47... Rf1 {[%clk 0:01:26.7]} 48. Bg3 {[%clk 0:00:12.2]} 48...
Rf3 {[%clk 0:01:27.4]} 49. Rc6+ {[%clk 0:00:11]} 49... Kd7 {[%clk 0:01:27]} 50.
Rd6+ {[%clk 0:00:10]} 50... Ke7 {[%clk 0:01:28]} 51. Be5 {[%clk 0:00:10.7]}
51... Kf7 {[%clk 0:01:18.4]} 52. Rd7+ {[%clk 0:00:10.9]} 52... Ke6 {[%clk
0:01:17.1]} 53. Rg7 {[%clk 0:00:09.6]} 53... g3 {[%clk 0:01:14]} 54. Rxg3 {[%clk
0:00:09.1]} 54... Rf5 {[%clk 0:01:14.8]} 55. Rg6+ {[%clk 0:00:07.4]} 55... Ke7
{[%clk 0:01:14.6]} 56. Ra6 {[%clk 0:00:04.9]} 56... Rg5 {[%clk 0:01:16.1]} 57.
Ra7+ {[%clk 0:00:06]} 57... Ke6 {[%clk 0:01:16.5]} 58. Ra6+ {[%clk 0:00:07.4]}
58... Kf5 {[%clk 0:01:17.6]} 59. Ra5 {[%clk 0:00:07.9]} 59... Kg4 {[%clk
0:01:19.2]} 60. Bf6 {[%clk 0:00:08.4]} 60... Rg6 {[%clk 0:01:18.9]} 61. Bg5
{[%clk 0:00:09]} 61... Rd6+ {[%clk 0:01:19.8]} 62. Ke5 {[%clk 0:00:09.9]} 62...
Rc6 {[%clk 0:01:19.5]} 63. Rc5 {[%clk 0:00:09.3]} 63... Ra6 {[%clk 0:01:17.1]}
64. b5 {[%clk 0:00:10.3]} 64... Ra5 {[%clk 0:01:17.7]} 65. Kd4 {[%clk
0:00:10.3]} 65... Ra4+ {[%clk 0:01:18.6]} 66. c4 {[%clk 0:00:11.3]} 66... Kh5
{[%clk 0:01:19.4]} 67. b6 {[%clk 0:00:12.2]} 67... Ra6 {[%clk 0:01:18.4]} 68. b7
{[%clk 0:00:11.2]} 68... Rb6 {[%clk 0:01:18.6]} 69. Rb5 {[%clk 0:00:12.4]} 1-0

[Event "*** Titled Tuesday Blitz"]
[Site "Chess.com"]
[Date "2019.09.03"]
[Round "10"]
[White "Bladel"]
[Black "bubacik"]
[Result "0-1"]
[WhiteElo "2631"]
[BlackElo "2749"]
[TimeControl "180+2"]
[EndTime "17:20:53 PDT"]
[Termination "bubacik won by checkmate"]

1. e4 {[%clk 0:03:01.9]} 1... e5 {[%clk 0:03:00.1]} 2. Bc4 {[%clk 0:03:02.2]}
2... Nf6 {[%clk 0:03:00.2]} 3. d4 {[%clk 0:03:02.4]} 3... Nc6 {[%clk 0:02:56.3]}
4. d5 {[%clk 0:02:49.6]} 4... Ne7 {[%clk 0:02:53.7]} 5. Nc3 {[%clk 0:02:47.1]}
5... Ng6 {[%clk 0:02:53.3]} 6. Nge2 {[%clk 0:02:47.2]} 6... Bc5 {[%clk
0:02:53.4]} 7. O-O {[%clk 0:02:47.4]} 7... O-O {[%clk 0:02:52.7]} 8. h3 {[%clk
0:02:45]} 8... a6 {[%clk 0:02:48.2]} 9. Kh1 {[%clk 0:02:44.9]} 9... b5 {[%clk
0:02:44.3]} 10. Bd3 {[%clk 0:02:43.5]} 10... c6 {[%clk 0:02:32.5]} 11. a3 {[%clk
0:02:39.4]} 11... Bb7 {[%clk 0:02:29.5]} 12. dxc6 {[%clk 0:02:36.7]} 12... Bxc6
{[%clk 0:02:30.9]} 13. f4 {[%clk 0:02:34.5]} 13... exf4 {[%clk 0:02:26.5]} 14.
Nxf4 {[%clk 0:02:32.5]} 14... Nxf4 {[%clk 0:02:27.1]} 15. Bxf4 {[%clk
0:02:33.5]} 15... d5 {[%clk 0:02:28.4]} 16. exd5 {[%clk 0:02:32.2]} 16... Nxd5
{[%clk 0:02:29.5]} 17. Nxd5 {[%clk 0:02:16.1]} 17... Qxd5 {[%clk 0:02:28]} 18.
Qg4 {[%clk 0:02:15.4]} 18... f5 {[%clk 0:02:12.3]} 19. Qg3 {[%clk 0:02:13.5]}
19... Rf6 {[%clk 0:02:09.8]} 20. Bg5 {[%clk 0:01:58.2]} 20... Bd6 {[%clk
0:01:46.6]} 21. Qf3 {[%clk 0:00:58.5]} 21... Qxf3 {[%clk 0:01:19.7]} 22. gxf3
{[%clk 0:01:00.4]} 22... Rg6 {[%clk 0:01:19.9]} 23. h4 {[%clk 0:00:59.8]} 23...
Rf8 {[%clk 0:01:14.3]} 24. Rae1 {[%clk 0:00:53.4]} 24... Rf7 {[%clk 0:00:59.7]}
25. c4 {[%clk 0:00:53.7]} 25... h6 {[%clk 0:01:00.6]} 26. cxb5 {[%clk
0:00:52.2]} 26... axb5 {[%clk 0:00:57.5]} 27. Rc1 {[%clk 0:00:51.2]} 27... Be5
{[%clk 0:00:52.6]} 28. Be3 {[%clk 0:00:51.9]} 28... Bxb2 {[%clk 0:00:46.7]} 29.
Rb1 {[%clk 0:00:51.8]} 29... Bxa3 {[%clk 0:00:47.3]} 30. Bxb5 {[%clk 0:00:48.5]}
30... Bxb5 {[%clk 0:00:41.9]} 31. Rxb5 {[%clk 0:00:50.4]} 31... Be7 {[%clk
0:00:38.6]} 32. Bf2 {[%clk 0:00:46.2]} 32... Rc6 {[%clk 0:00:31.4]} 33. Rfb1
{[%clk 0:00:39]} 33... Rc4 {[%clk 0:00:30.1]} 34. h5 {[%clk 0:00:37.6]} 34...
Bh4 {[%clk 0:00:25.2]} 35. R1b2 {[%clk 0:00:36.3]} 35... Bxf2 {[%clk 0:00:20.1]}
36. Rxf2 {[%clk 0:00:38.2]} 36... Rh4+ {[%clk 0:00:21]} 37. Rh2 {[%clk
0:00:38.1]} 37... Rd4 {[%clk 0:00:22.1]} 38. Kg2 {[%clk 0:00:34.2]} 38... Kh7
{[%clk 0:00:23.5]} 39. Kg3 {[%clk 0:00:30.9]} 39... f4+ {[%clk 0:00:23.6]} 40.
Kg4 {[%clk 0:00:29.8]} 40... Rd1 {[%clk 0:00:25.2]} 41. Rf5 {[%clk 0:00:25.7]}
41... Rg1+ {[%clk 0:00:25.5]} 42. Kxf4 {[%clk 0:00:26]} 42... Re7 {[%clk
0:00:25.5]} 43. Rb2 {[%clk 0:00:23.8]} 43... Rh1 {[%clk 0:00:23]} 44. Kg3 {[%clk
0:00:23.2]} 44... Ree1 {[%clk 0:00:23.8]} 45. Ra5 {[%clk 0:00:20.2]} 45... Reg1+
{[%clk 0:00:24]} 46. Kf4 {[%clk 0:00:21.2]} 46... Rh4+ {[%clk 0:00:23.7]} 47.
Ke3 {[%clk 0:00:22.2]} 47... Re1+ {[%clk 0:00:22.1]} 48. Kf2 {[%clk 0:00:22.8]}
48... Reh1 {[%clk 0:00:23.6]} 49. Rbb5 {[%clk 0:00:21.7]} 49... R4h3 {[%clk
0:00:20.4]} 50. Ke3 {[%clk 0:00:18.5]} 50... Rf1 {[%clk 0:00:20.1]} 51. Rf5
{[%clk 0:00:14.3]} 51... Rb1 {[%clk 0:00:21.2]} 52. Ke2 {[%clk 0:00:15.3]} 52...
Rb2+ {[%clk 0:00:21.6]} 53. Ke3 {[%clk 0:00:16.3]} 53... Rb3+ {[%clk 0:00:19.2]}
54. Ke2 {[%clk 0:00:16.8]} 54... Rh2+ {[%clk 0:00:19.4]} 55. Kd1 {[%clk
0:00:16.1]} 55... Rb1# {[%clk 0:00:21.3]} 0-1

[Event "*** Titled Tuesday Blitz"]
[Site "Chess.com"]
[Date "2019.09.03"]
[Round "10"]
[White "vinniethepooh"]
[Black "GCamachoMartinez"]
[Result "1/2-1/2"]
[WhiteElo "2575"]
[BlackElo "2435"]
[TimeControl "180+2"]
[EndTime "17:21:25 PDT"]
[Termination "Game drawn by agreement"]

1. d4 {[%clk 0:03:01.9]} 1... d5 {[%clk 0:02:59.8]} 2. c4 {[%clk 0:03:03.3]}
2... c6 {[%clk 0:03:00.9]} 3. Nc3 {[%clk 0:03:04.4]} 3... Nf6 {[%clk 0:03:01.9]}
4. cxd5 {[%clk 0:03:06]} 4... cxd5 {[%clk 0:03:02.5]} 5. f3 {[%clk 0:03:07.5]}
5... Nc6 {[%clk 0:02:55.4]} 6. e4 {[%clk 0:03:08.2]} 6... e6 {[%clk 0:02:52]} 7.
e5 {[%clk 0:03:09]} 7... Nd7 {[%clk 0:02:53.1]} 8. f4 {[%clk 0:03:10.5]} 8... f6
{[%clk 0:02:51.5]} 9. Nf3 {[%clk 0:03:12.4]} 9... Bb4 {[%clk 0:02:50.1]} 10. Bd3
{[%clk 0:03:11.7]} 10... Qb6 {[%clk 0:02:45.6]} 11. exf6 {[%clk 0:02:21.2]}
11... Nxf6 {[%clk 0:02:45.9]} 12. Be3 {[%clk 0:02:14.9]} 12... O-O {[%clk
0:02:20.1]} 13. Qc2 {[%clk 0:02:13.7]} 13... Bd6 {[%clk 0:02:08.1]} 14. g3
{[%clk 0:02:03.2]} 14... Nb4 {[%clk 0:02:07.6]} 15. Qe2 {[%clk 0:01:59.1]} 15...
Nxd3+ {[%clk 0:02:08.2]} 16. Qxd3 {[%clk 0:02:01]} 16... Bd7 {[%clk 0:01:38.1]}
17. O-O {[%clk 0:02:00.3]} 17... Rac8 {[%clk 0:01:38.2]} 18. Qe2 {[%clk
0:01:55.1]} 18... Bb4 {[%clk 0:01:36.8]} 19. Rfc1 {[%clk 0:01:46.3]} 19... Bxc3
{[%clk 0:01:37.3]} 20. bxc3 {[%clk 0:01:44.8]} 20... Bb5 {[%clk 0:01:35.9]} 21.
Qb2 {[%clk 0:01:40.6]} 21... Bd3 {[%clk 0:01:23.8]} 22. Qxb6 {[%clk 0:01:38.8]}
22... axb6 {[%clk 0:01:25.7]} 23. Ne5 {[%clk 0:01:40.4]} 23... Be4 {[%clk
0:01:26.7]} 24. a4 {[%clk 0:01:36.4]} 24... Rc7 {[%clk 0:01:27.8]} 25. Kf2
{[%clk 0:01:21.4]} 25... Rfc8 {[%clk 0:01:28.4]} 26. Bd2 {[%clk 0:01:22.9]}
26... Nd7 {[%clk 0:01:29.1]} 27. Nxd7 {[%clk 0:01:07.7]} 27... Rxd7 {[%clk
0:01:31]} 28. Ke3 {[%clk 0:01:09.3]} 28... Rdc7 {[%clk 0:01:26.9]} 29. Ra2
{[%clk 0:01:04.5]} 29... Ra8 {[%clk 0:01:27.4]} 30. Rca1 {[%clk 0:00:59.5]}
30... Rc4 {[%clk 0:01:24.9]} 31. Rb2 {[%clk 0:00:56.5]} 31... Ra6 {[%clk
0:01:19.5]} 32. Rb4 {[%clk 0:00:48.4]} 32... Rxb4 {[%clk 0:01:12.8]} 33. cxb4
{[%clk 0:00:50.3]} 33... b5 {[%clk 0:01:14.2]} 34. a5 {[%clk 0:00:45.9]} 34...
Rc6 {[%clk 0:01:15.2]} 35. g4 {[%clk 0:00:35.1]} 35... Kf7 {[%clk 0:01:14.7]}
36. h4 {[%clk 0:00:33.5]} 36... h5 {[%clk 0:00:57.7]} 37. gxh5 {[%clk
0:00:24.5]} 37... Kf6 {[%clk 0:00:58.6]} 38. Rg1 {[%clk 0:00:25]} 38... Rc8
{[%clk 0:00:59.2]} 39. Rg5 {[%clk 0:00:18.1]} 39... Rc2 {[%clk 0:00:54.6]} 40.
Rg1 {[%clk 0:00:15]} 40... Rc8 {[%clk 0:00:46.2]} 41. Rc1 {[%clk 0:00:09.9]}
41... Rxc1 {[%clk 0:00:46]} 42. Bxc1 {[%clk 0:00:11.8]} 42... Kf5 {[%clk
0:00:47.6]} 43. Bd2 {[%clk 0:00:13]} 43... Kg4 {[%clk 0:00:48.5]} 44. Be1 {[%clk
0:00:14.6]} 44... Bf5 {[%clk 0:00:47.8]} 45. Bf2 {[%clk 0:00:14]} 45... Be4
{[%clk 0:00:48.9]} 46. Be1 {[%clk 0:00:15.3]} 46... Kxh5 {[%clk 0:00:50.2]} 47.
Bf2 {[%clk 0:00:16.1]} 47... Kg4 {[%clk 0:00:51.6]} 48. Be1 {[%clk 0:00:17]}
48... Kh3 {[%clk 0:00:52.4]} 49. Bf2 {[%clk 0:00:17.1]} 49... Kg2 {[%clk
0:00:53.6]} 50. Be1 {[%clk 0:00:17.9]} 50... g6 {[%clk 0:00:54.8]} 51. Bf2
{[%clk 0:00:18.3]} 51... Kf1 {[%clk 0:00:55.9]} 52. Bg3 {[%clk 0:00:19.4]} 52...
Kg2 {[%clk 0:00:53.6]} 53. Bf2 {[%clk 0:00:20.2]} 53... Kh3 {[%clk 0:00:54.6]}
54. Be1 {[%clk 0:00:20.7]} 54... Kg4 {[%clk 0:00:55.4]} 55. Bf2 {[%clk
0:00:21.8]} 55... Kf5 {[%clk 0:00:35.9]} 56. Be1 {[%clk 0:00:21.1]} 56... Kf6
{[%clk 0:00:37.2]} 57. Bg3 {[%clk 0:00:20.3]} 57... Ke7 {[%clk 0:00:39.1]} 58.
Be1 {[%clk 0:00:21.6]} 58... Kd7 {[%clk 0:00:40.3]} 59. Kf2 {[%clk 0:00:20]}
59... Kc6 {[%clk 0:00:42.2]} 60. Kg3 {[%clk 0:00:20.9]} 60... Bf5 {[%clk
0:00:37.1]} 61. Bd2 {[%clk 0:00:20.5]} 61... Kd6 {[%clk 0:00:38.2]} 62. Be1
{[%clk 0:00:20.4]} 62... Kc6 {[%clk 0:00:39.4]} 63. Bd2 {[%clk 0:00:21.7]} 63...
b6 {[%clk 0:00:40.6]} 64. axb6 {[%clk 0:00:19.4]} 64... Kxb6 {[%clk 0:00:42.5]}
65. Be1 {[%clk 0:00:21.3]} 65... Kc6 {[%clk 0:00:33.8]} 1/2-1/2